[Event "*** SCC Grand Prix: Titled Tuesday Blitz"]
[Site "Chess.com"]
[Date "2020.07.07"]
[Round "7"]
[White "ApoIogiA"]
[Black "guillembaches"]
[Result "0-1"]
[WhiteElo "2113"]
[BlackElo "2402"]
[TimeControl "180+1"]
[EndTime "11:19:02 PDT"]
[Termination "guillembaches won by resignation"]

1. d4 {[%clk 0:02:59.7]} 1... Nf6 {[%clk 0:02:59.3]} 2. c4 {[%clk 0:02:58.9]}
2... e6 {[%clk 0:02:59.6]} 3. Nf3 {[%clk 0:02:58.2]} 3... d5 {[%clk 0:02:59.4]}
4. Bg5 {[%clk 0:02:57.3]} 4... Be7 {[%clk 0:02:58.3]} 5. Nc3 {[%clk 0:02:57.8]}
5... Nbd7 {[%clk 0:02:57.7]} 6. e3 {[%clk 0:02:58]} 6... h6 {[%clk 0:02:57.8]}
7. Bxf6 {[%clk 0:02:57.4]} 7... Nxf6 {[%clk 0:02:57.5]} 8. Be2 {[%clk
0:02:56.5]} 8... O-O {[%clk 0:02:55.3]} 9. cxd5 {[%clk 0:02:51.9]} 9... exd5
{[%clk 0:02:53.5]} 10. O-O {[%clk 0:02:51.1]} 10... b6 {[%clk 0:02:49]} 11. Ne5
{[%clk 0:02:49.5]} 11... Bb7 {[%clk 0:02:49.1]} 12. Rc1 {[%clk 0:02:48.8]} 12...
c5 {[%clk 0:02:47.4]} 13. Bf3 {[%clk 0:02:42.9]} 13... c4 {[%clk 0:02:41.6]} 14.
Re1 {[%clk 0:02:36.6]} 14... a6 {[%clk 0:02:40.4]} 15. a4 {[%clk 0:02:35.6]}
15... Bb4 {[%clk 0:02:34]} 16. b3 {[%clk 0:02:31.5]} 16... Rc8 {[%clk 0:02:29]}
17. bxc4 {[%clk 0:02:29]} 17... Qe7 {[%clk 0:02:19.9]} 18. Qe2 {[%clk
0:01:58.4]} 18... dxc4 {[%clk 0:02:12.8]} 19. Bxb7 {[%clk 0:01:39.5]} 19... Qxb7
{[%clk 0:02:13.7]} 20. Rc2 {[%clk 0:01:34.1]} 20... Nd5 {[%clk 0:01:54.4]} 21.
Nxd5 {[%clk 0:01:02.7]} 21... Bxe1 {[%clk 0:01:39.6]} 22. Qf3 {[%clk 0:01:01.9]}
22... Kh8 {[%clk 0:01:17.5]} 23. e4 {[%clk 0:00:50.5]} 23... b5 {[%clk
0:01:14.6]} 24. g4 {[%clk 0:00:35.1]} 24... b4 {[%clk 0:01:05.3]} 25. g5 {[%clk
0:00:31.5]} 25... b3 {[%clk 0:01:05.3]} 26. gxh6 {[%clk 0:00:26.3]} 26... f6
{[%clk 0:00:39]} 27. hxg7+ {[%clk 0:00:24.6]} 27... Qxg7+ {[%clk 0:00:37.6]} 28.
Kf1 {[%clk 0:00:14.7]} 28... fxe5 {[%clk 0:00:36.9]} 29. Qh5+ {[%clk 0:00:13.6]}
29... Kg8 {[%clk 0:00:32.3]} 30. Rc1 {[%clk 0:00:06.7]} 30... Bxf2 {[%clk
0:00:30.6]} 0-1

[Event "*** SCC Grand Prix: Titled Tuesday Blitz"]
[Site "Chess.com"]
[Date "2020.07.07"]
[Round "7"]
[White "Ati1517"]
[Black "ChessicallyInclined"]
[Result "0-1"]
[WhiteElo "2371"]
[BlackElo "2495"]
[TimeControl "180+1"]
[EndTime "11:19:04 PDT"]
[Termination "ChessicallyInclined won by resignation"]

1. d4 {[%clk 0:03:00.9]} 1... Nf6 {[%clk 0:02:59]} 2. c4 {[%clk 0:03:00.6]} 2...
e6 {[%clk 0:02:57.3]} 3. Nc3 {[%clk 0:03:00.5]} 3... Bb4 {[%clk 0:02:57]} 4. Qc2
{[%clk 0:03:00.2]} 4... d5 {[%clk 0:02:55.7]} 5. cxd5 {[%clk 0:02:59.8]} 5...
Qxd5 {[%clk 0:02:56.6]} 6. Nf3 {[%clk 0:02:55]} 6... Qf5 {[%clk 0:02:45.2]} 7.
Qa4+ {[%clk 0:02:44.6]} 7... Nc6 {[%clk 0:02:42.2]} 8. Bd2 {[%clk 0:02:16.8]}
8... O-O {[%clk 0:02:40.6]} 9. e3 {[%clk 0:02:01.5]} 9... Nd5 {[%clk 0:02:29.9]}
10. Nxd5 {[%clk 0:01:42.4]} 10... Bxd2+ {[%clk 0:02:30.8]} 11. Nxd2 {[%clk
0:01:42.2]} 11... exd5 {[%clk 0:02:30.8]} 12. Be2 {[%clk 0:01:36.7]} 12... Bd7
{[%clk 0:02:23.3]} 13. Qb3 {[%clk 0:01:34.5]} 13... b6 {[%clk 0:02:15.7]} 14.
O-O {[%clk 0:01:32.9]} 14... Na5 {[%clk 0:02:12.1]} 15. Qc3 {[%clk 0:01:32]}
15... c6 {[%clk 0:02:01.7]} 16. Ba6 {[%clk 0:01:25.1]} 16... Bc8 {[%clk
0:01:36.9]} 17. Bd3 {[%clk 0:01:23.8]} 17... Qf6 {[%clk 0:01:36.6]} 18. b4
{[%clk 0:01:22.1]} 18... Nb7 {[%clk 0:01:36.8]} 19. Rac1 {[%clk 0:01:16.6]}
19... Bd7 {[%clk 0:01:36]} 20. e4 {[%clk 0:01:13.7]} 20... dxe4 {[%clk
0:01:34.4]} 21. Nxe4 {[%clk 0:01:13]} 21... Qh6 {[%clk 0:01:33.8]} 22. Ba6
{[%clk 0:01:08.2]} 22... Nd6 {[%clk 0:01:29.9]} 23. Nxd6 {[%clk 0:01:04.6]}
23... Qxd6 {[%clk 0:01:30.8]} 24. Bb7 {[%clk 0:01:04.3]} 24... Rab8 {[%clk
0:01:18.9]} 25. Bxc6 {[%clk 0:01:04.1]} 25... Bxc6 {[%clk 0:01:19.1]} 26. Qxc6
{[%clk 0:01:03.4]} 26... Qxd4 {[%clk 0:01:19]} 27. b5 {[%clk 0:01:01.9]} 27...
g6 {[%clk 0:01:15.8]} 28. h3 {[%clk 0:00:58.3]} 28... h5 {[%clk 0:01:15.5]} 29.
Rfd1 {[%clk 0:00:57.6]} 29... Qa4 {[%clk 0:01:09.9]} 30. Rd7 {[%clk 0:00:37.6]}
30... Qxa2 {[%clk 0:01:05.1]} 31. Re1 {[%clk 0:00:37.4]} 31... Rbe8 {[%clk
0:01:01.4]} 32. Red1 {[%clk 0:00:30.3]} 32... Re6 {[%clk 0:00:55.7]} 33. Qb7
{[%clk 0:00:28.3]} 33... Qb3 {[%clk 0:00:53.2]} 34. R1d5 {[%clk 0:00:22.1]}
34... Qc4 {[%clk 0:00:35.2]} 35. Rg5 {[%clk 0:00:17.6]} 35... Re1+ {[%clk
0:00:33.1]} 36. Kh2 {[%clk 0:00:17.6]} 36... Qf4+ {[%clk 0:00:33.1]} 37. Rg3
{[%clk 0:00:16.3]} 37... h4 {[%clk 0:00:33.3]} 0-1

[Event "*** SCC Grand Prix: Titled Tuesday Blitz"]
[Site "Chess.com"]
[Date "2020.07.07"]
[Round "7"]
[White "chargemax23"]
[Black "UCantHandleDenker"]
[Result "1-0"]
[WhiteElo "2682"]
[BlackElo "2534"]
[TimeControl "180+1"]
[EndTime "11:19:08 PDT"]
[Termination "chargemax23 won by resignation"]

1. c4 {[%clk 0:02:55.8]} 1... Nf6 {[%clk 0:02:59.3]} 2. Nc3 {[%clk 0:02:55.4]}
2... g6 {[%clk 0:02:58.3]} 3. g3 {[%clk 0:02:54.9]} 3... Bg7 {[%clk 0:02:58]} 4.
Bg2 {[%clk 0:02:55.6]} 4... d6 {[%clk 0:02:58.1]} 5. d4 {[%clk 0:02:56.2]} 5...
O-O {[%clk 0:02:58.2]} 6. Nf3 {[%clk 0:02:56.1]} 6... Nc6 {[%clk 0:02:57.5]} 7.
O-O {[%clk 0:02:55.8]} 7... e5 {[%clk 0:02:57.1]} 8. h3 {[%clk 0:02:53.7]} 8...
exd4 {[%clk 0:02:44]} 9. Nxd4 {[%clk 0:02:53.2]} 9... Bd7 {[%clk 0:02:44.5]} 10.
Nc2 {[%clk 0:02:44.9]} 10... Re8 {[%clk 0:02:29]} 11. e4 {[%clk 0:02:43.1]}
11... Qc8 {[%clk 0:02:08]} 12. Kh2 {[%clk 0:02:39.5]} 12... Re5 {[%clk
0:02:07.5]} 13. Ne3 {[%clk 0:02:21]} 13... Rh5 {[%clk 0:02:01.8]} 14. h4 {[%clk
0:02:03]} 14... Re5 {[%clk 0:01:39.5]} 15. Ned5 {[%clk 0:01:32.3]} 15... Re8
{[%clk 0:01:35.2]} 16. Bg5 {[%clk 0:01:13.2]} 16... Ng4+ {[%clk 0:01:28]} 17.
Kg1 {[%clk 0:01:12.7]} 17... h6 {[%clk 0:01:27.8]} 18. Bf4 {[%clk 0:01:11.4]}
18... Nge5 {[%clk 0:01:23.9]} 19. Nb5 {[%clk 0:01:04.9]} 19... Nxc4 {[%clk
0:00:46.5]} 20. Nbxc7 {[%clk 0:00:59.7]} 20... Nxb2 {[%clk 0:00:39.7]} 21. Qc2
{[%clk 0:00:38.6]} 21... Nd4 {[%clk 0:00:35.3]} 22. Qb1 {[%clk 0:00:27.3]} 22...
Ne2+ {[%clk 0:00:31.8]} 23. Kh2 {[%clk 0:00:27.2]} 23... Nxf4 {[%clk 0:00:31.5]}
24. Nxe8 {[%clk 0:00:23.6]} 24... Bxe8 {[%clk 0:00:25.9]} 25. Ne7+ {[%clk
0:00:22.5]} 25... Kf8 {[%clk 0:00:25.5]} 26. Nxc8 {[%clk 0:00:22.6]} 26... Rxc8
{[%clk 0:00:16.5]} 27. gxf4 {[%clk 0:00:22.1]} 27... Nc4 {[%clk 0:00:14.1]} 28.
Qxb7 {[%clk 0:00:21.3]} 28... Rd8 {[%clk 0:00:12.4]} 29. Rac1 {[%clk 0:00:20.4]}
29... Nb6 {[%clk 0:00:10.8]} 30. Qxa7 {[%clk 0:00:20.2]} 30... Bd4 {[%clk
0:00:10]} 31. Qc7 {[%clk 0:00:19.1]} 1-0

[Event "*** SCC Grand Prix: Titled Tuesday Blitz"]
[Site "Chess.com"]
[Date "2020.07.07"]
[Round "7"]
[White "PauloFanha"]
[Black "Efremov_Vlad"]
[Result "1-0"]
[WhiteElo "2012"]
[BlackElo "2197"]
[TimeControl "180+1"]
[EndTime "11:19:10 PDT"]
[Termination "PauloFanha won on time"]

1. e4 {[%clk 0:03:00.9]} 1... c5 {[%clk 0:02:59.8]} 2. Nf3 {[%clk 0:02:59.6]}
2... e6 {[%clk 0:03:00.2]} 3. Nc3 {[%clk 0:02:58.9]} 3... Nc6 {[%clk 0:02:59.1]}
4. e5 {[%clk 0:02:56.5]} 4... d6 {[%clk 0:02:54]} 5. exd6 {[%clk 0:02:54.9]}
5... Bxd6 {[%clk 0:02:53.2]} 6. Bb5 {[%clk 0:02:53.2]} 6... Nf6 {[%clk
0:02:51.1]} 7. Bxc6+ {[%clk 0:02:50.6]} 7... bxc6 {[%clk 0:02:50.5]} 8. O-O
{[%clk 0:02:49.9]} 8... O-O {[%clk 0:02:50.4]} 9. d3 {[%clk 0:02:46.1]} 9... Ba6
{[%clk 0:02:43.2]} 10. Re1 {[%clk 0:02:44.2]} 10... c4 {[%clk 0:02:43]} 11. d4
{[%clk 0:02:40]} 11... c5 {[%clk 0:02:41.6]} 12. Be3 {[%clk 0:02:37.1]} 12...
cxd4 {[%clk 0:02:40.3]} 13. Bxd4 {[%clk 0:02:35.3]} 13... Be7 {[%clk 0:02:39.1]}
14. Qe2 {[%clk 0:02:21.5]} 14... Qa5 {[%clk 0:02:30.4]} 15. Qe5 {[%clk
0:02:11.7]} 15... Qxe5 {[%clk 0:02:28]} 16. Bxe5 {[%clk 0:02:08.4]} 16... Nd7
{[%clk 0:02:19.1]} 17. Bd4 {[%clk 0:02:02.2]} 17... Rfb8 {[%clk 0:02:13.5]} 18.
Ne4 {[%clk 0:01:57]} 18... Rb5 {[%clk 0:01:55.9]} 19. Bc3 {[%clk 0:01:51]} 19...
Rc8 {[%clk 0:01:29.8]} 20. Rad1 {[%clk 0:01:49.1]} 20... Nc5 {[%clk 0:01:27.4]}
21. Nxc5 {[%clk 0:01:46]} 21... Bxc5 {[%clk 0:01:26.3]} 22. Rd7 {[%clk
0:01:43.7]} 22... Bb7 {[%clk 0:01:07.3]} 23. Ne5 {[%clk 0:01:31.9]} 23... f6
{[%clk 0:00:39.6]} 24. Nxc4 {[%clk 0:01:29.8]} 24... Bd5 {[%clk 0:00:39.6]} 25.
Ne3 {[%clk 0:01:21.2]} 25... Bxe3 {[%clk 0:00:26]} 26. Rxe3 {[%clk 0:01:16.1]}
26... Bxa2 {[%clk 0:00:22.4]} 27. Rxa7 {[%clk 0:01:12]} 27... Bd5 {[%clk
0:00:21.6]} 28. f3 {[%clk 0:01:04.9]} 28... e5 {[%clk 0:00:19.8]} 29. Rd3 {[%clk
0:01:00.1]} 29... Be6 {[%clk 0:00:12.9]} 30. Rd6 {[%clk 0:00:56.2]} 30... Bf5
{[%clk 0:00:11.4]} 31. g4 {[%clk 0:00:52.6]} 31... Bxc2 {[%clk 0:00:10.7]} 32.
Rdd7 {[%clk 0:00:51.8]} 32... Kh8 {[%clk 0:00:05.1]} 33. Rxg7 {[%clk 0:00:50.1]}
33... Rd5 {[%clk 0:00:05.3]} 34. Rgd7 {[%clk 0:00:48.1]} 34... Rd8 {[%clk
0:00:04.3]} 35. Rxd8+ {[%clk 0:00:44.6]} 35... Rxd8 {[%clk 0:00:04.2]} 36. Rf7
{[%clk 0:00:43.4]} 36... Rd1+ {[%clk 0:00:04]} 37. Kf2 {[%clk 0:00:41.7]} 37...
Rd6 {[%clk 0:00:03.6]} 38. Rxf6 {[%clk 0:00:37.9]} 38... Re6 {[%clk 0:00:02.9]}
39. Rxe6 {[%clk 0:00:36.7]} 1-0

[Event "*** SCC Grand Prix: Titled Tuesday Blitz"]
[Site "Chess.com"]
[Date "2020.07.07"]
[Round "7"]
[White "AldokhinIvan"]
[Black "okriak"]
[Result "0-1"]
[WhiteElo "2521"]
[BlackElo "2719"]
[TimeControl "180+1"]
[EndTime "11:19:11 PDT"]
[Termination "okriak won on time"]

1. e4 {[%clk 0:03:00.1]} 1... e6 {[%clk 0:02:59.3]} 2. d4 {[%clk 0:02:59.1]}
2... d5 {[%clk 0:02:59.3]} 3. Nc3 {[%clk 0:02:59.1]} 3... Bb4 {[%clk 0:02:58]}
4. Ne2 {[%clk 0:02:58.8]} 4... dxe4 {[%clk 0:02:56.8]} 5. a3 {[%clk 0:02:58.8]}
5... Bxc3+ {[%clk 0:02:56.7]} 6. Nxc3 {[%clk 0:02:58.5]} 6... Nc6 {[%clk
0:02:57.3]} 7. Bb5 {[%clk 0:02:55.1]} 7... Ne7 {[%clk 0:02:56.9]} 8. Nxe4 {[%clk
0:02:44.8]} 8... Qd5 {[%clk 0:02:55.8]} 9. Qe2 {[%clk 0:02:34.4]} 9... Qxd4
{[%clk 0:02:50.8]} 10. O-O {[%clk 0:02:25.5]} 10... O-O {[%clk 0:02:48]} 11. Bd3
{[%clk 0:02:22.2]} 11... Ne5 {[%clk 0:02:33]} 12. Be3 {[%clk 0:02:10.5]} 12...
Qd8 {[%clk 0:02:32.2]} 13. Bb5 {[%clk 0:02:09.7]} 13... c6 {[%clk 0:02:29.3]}
14. Ba4 {[%clk 0:02:03]} 14... Nd5 {[%clk 0:02:26.1]} 15. Bc5 {[%clk 0:01:59.8]}
15... Re8 {[%clk 0:02:22.4]} 16. f4 {[%clk 0:01:48.3]} 16... Nd7 {[%clk
0:02:20]} 17. Bd6 {[%clk 0:01:36.2]} 17... N7f6 {[%clk 0:02:17.4]} 18. Nxf6+
{[%clk 0:01:17.6]} 18... Nxf6 {[%clk 0:01:50.3]} 19. Rad1 {[%clk 0:01:12]} 19...
b5 {[%clk 0:01:49.6]} 20. Bb3 {[%clk 0:01:10.5]} 20... Qb6+ {[%clk 0:01:49.3]}
21. Kh1 {[%clk 0:01:09.8]} 21... c5 {[%clk 0:01:48.2]} 22. c4 {[%clk 0:01:05.5]}
22... Ba6 {[%clk 0:01:43.7]} 23. Be5 {[%clk 0:00:55.2]} 23... bxc4 {[%clk
0:01:43.4]} 24. Bc2 {[%clk 0:00:38.9]} 24... c3 {[%clk 0:01:42.9]} 25. Rd3
{[%clk 0:00:25.4]} 25... Bxd3 {[%clk 0:01:32.2]} 26. Qxd3 {[%clk 0:00:24.2]}
26... Rad8 {[%clk 0:01:29.7]} 27. Qxc3 {[%clk 0:00:23]} 27... Nd5 {[%clk
0:01:18.4]} 28. Qh3 {[%clk 0:00:20.5]} 28... g6 {[%clk 0:01:13.6]} 29. Qh6
{[%clk 0:00:20.2]} 29... f6 {[%clk 0:01:13.5]} 30. Bxg6 {[%clk 0:00:12.6]} 30...
Re7 {[%clk 0:00:54.5]} 31. Rf3 {[%clk 0:00:04.2]} 31... hxg6 {[%clk 0:00:31.5]}
32. Rg3 {[%clk 0:00:03.4]} 32... Rg7 {[%clk 0:00:28.2]} 33. Rxg6 {[%clk
0:00:03.4]} 33... Qb7 {[%clk 0:00:27.2]} 0-1

[Event "*** SCC Grand Prix: Titled Tuesday Blitz"]
[Site "Chess.com"]
[Date "2020.07.07"]
[Round "7"]
[White "j2806"]
[Black "IsaacWiebe"]
[Result "0-1"]
[WhiteElo "2040"]
[BlackElo "2087"]
[TimeControl "180+1"]
[EndTime "11:19:14 PDT"]
[Termination "IsaacWiebe won by checkmate"]

1. e4 {[%clk 0:03:00.9]} 1... e6 {[%clk 0:03:00]} 2. d4 {[%clk 0:03:00.6]} 2...
d5 {[%clk 0:03:00.6]} 3. Nd2 {[%clk 0:02:59.9]} 3... c5 {[%clk 0:03:00.3]} 4.
dxc5 {[%clk 0:02:49.3]} 4... Bxc5 {[%clk 0:02:55.6]} 5. exd5 {[%clk 0:02:48.7]}
5... exd5 {[%clk 0:02:51]} 6. Ngf3 {[%clk 0:02:45.7]} 6... Nf6 {[%clk 0:02:51]}
7. Be2 {[%clk 0:02:41.8]} 7... O-O {[%clk 0:02:50.6]} 8. O-O {[%clk 0:02:41.2]}
8... Nc6 {[%clk 0:02:49]} 9. Nb3 {[%clk 0:02:38.7]} 9... Bb6 {[%clk 0:02:48.6]}
10. Bg5 {[%clk 0:02:33.2]} 10... Bf5 {[%clk 0:02:44.2]} 11. Nbd4 {[%clk
0:02:24.4]} 11... Bg6 {[%clk 0:02:41.5]} 12. c3 {[%clk 0:02:01]} 12... Re8
{[%clk 0:02:40.2]} 13. Re1 {[%clk 0:01:58.9]} 13... Qd6 {[%clk 0:02:17.9]} 14.
h3 {[%clk 0:01:49.2]} 14... Ne4 {[%clk 0:02:14.1]} 15. Bh4 {[%clk 0:01:40]}
15... Qf4 {[%clk 0:01:55.6]} 16. g3 {[%clk 0:01:11.9]} 16... Qd6 {[%clk
0:01:38.4]} 17. Ng5 {[%clk 0:00:56.6]} 17... Nxd4 {[%clk 0:00:52.9]} 18. cxd4
{[%clk 0:00:48.2]} 18... Ba5 {[%clk 0:00:32.7]} 19. Nxe4 {[%clk 0:00:41.8]}
19... Rxe4 {[%clk 0:00:30.2]} 20. Rf1 {[%clk 0:00:30.3]} 20... Qb6 {[%clk
0:00:24.4]} 21. Qc1 {[%clk 0:00:12]} 21... Rxe2 {[%clk 0:00:22.1]} 22. Qf4
{[%clk 0:00:10.3]} 22... Re4 {[%clk 0:00:19.2]} 23. Qf3 {[%clk 0:00:09.6]} 23...
Qxd4 {[%clk 0:00:13.2]} 24. Rab1 {[%clk 0:00:08]} 24... Bb6 {[%clk 0:00:12.8]}
25. Rfd1 {[%clk 0:00:07.4]} 25... Qe5 {[%clk 0:00:11.5]} 26. Kg2 {[%clk
0:00:06.8]} 26... Re2 {[%clk 0:00:10.6]} 27. Rf1 {[%clk 0:00:06]} 27... Be4
{[%clk 0:00:10.5]} 28. g4 {[%clk 0:00:04.5]} 28... Bxf3+ {[%clk 0:00:10.4]} 29.
Kxf3 {[%clk 0:00:04.8]} 29... Qe4+ {[%clk 0:00:10.9]} 30. Kg3 {[%clk 0:00:05.2]}
30... Bc7+ {[%clk 0:00:10.4]} 31. f4 {[%clk 0:00:05.6]} 31... Re3+ {[%clk
0:00:10.2]} 32. Kh2 {[%clk 0:00:05.8]} 32... Re2+ {[%clk 0:00:10.6]} 33. Kg1
{[%clk 0:00:05.1]} 33... Qg2# {[%clk 0:00:10.6]} 0-1

[Event "*** SCC Grand Prix: Titled Tuesday Blitz"]
[Site "Chess.com"]
[Date "2020.07.07"]
[Round "7"]
[White "TST2014"]
[Black "cassoulet"]
[Result "0-1"]
[WhiteElo "2488"]
[BlackElo "2645"]
[TimeControl "180+1"]
[EndTime "11:19:15 PDT"]
[Termination "cassoulet won by resignation"]

1. d4 {[%clk 0:03:00.9]} 1... Nf6 {[%clk 0:02:59.8]} 2. c4 {[%clk 0:03:00.7]}
2... e6 {[%clk 0:03:00]} 3. Nf3 {[%clk 0:03:00.5]} 3... d5 {[%clk 0:03:00.4]} 4.
Nc3 {[%clk 0:03:00.4]} 4... Be7 {[%clk 0:03:01]} 5. Bf4 {[%clk 0:03:00.3]} 5...
O-O {[%clk 0:03:00.7]} 6. e3 {[%clk 0:03:00.4]} 6... Nbd7 {[%clk 0:02:58.9]} 7.
c5 {[%clk 0:02:59.6]} 7... Ne4 {[%clk 0:02:58.1]} 8. Nxe4 {[%clk 0:02:58.2]}
8... dxe4 {[%clk 0:02:59]} 9. Ne5 {[%clk 0:02:58.7]} 9... Nxe5 {[%clk
0:02:58.5]} 10. Bxe5 {[%clk 0:02:59.6]} 10... Bf6 {[%clk 0:02:59.4]} 11. Bg3
{[%clk 0:02:50.8]} 11... Bd7 {[%clk 0:02:59.2]} 12. Bc4 {[%clk 0:02:41]} 12...
Bc6 {[%clk 0:02:59.4]} 13. O-O {[%clk 0:02:33.7]} 13... a6 {[%clk 0:02:58.4]}
14. Qc2 {[%clk 0:02:29.4]} 14... h5 {[%clk 0:02:57.4]} 15. h3 {[%clk 0:02:27.5]}
15... h4 {[%clk 0:02:56.9]} 16. Bh2 {[%clk 0:02:27]} 16... Re8 {[%clk
0:02:57.2]} 17. Rfd1 {[%clk 0:02:25.7]} 17... g6 {[%clk 0:02:53.3]} 18. b4
{[%clk 0:02:24]} 18... Qd7 {[%clk 0:02:46.9]} 19. a4 {[%clk 0:02:20.9]} 19...
Bg7 {[%clk 0:02:46.3]} 20. Qb3 {[%clk 0:02:14.7]} 20... Bd5 {[%clk 0:02:46]} 21.
b5 {[%clk 0:02:13.2]} 21... a5 {[%clk 0:02:43.4]} 22. Bxd5 {[%clk 0:02:07.7]}
22... exd5 {[%clk 0:02:42.9]} 23. c6 {[%clk 0:02:06.8]} 23... bxc6 {[%clk
0:02:39]} 24. bxc6 {[%clk 0:02:06.9]} 24... Qxc6 {[%clk 0:02:33.8]} 25. Rdc1
{[%clk 0:02:05.6]} 25... Qe6 {[%clk 0:02:27.7]} 26. Rxc7 {[%clk 0:01:59.9]}
26... Bf8 {[%clk 0:02:23.4]} 27. Rac1 {[%clk 0:01:51.8]} 27... Reb8 {[%clk
0:02:12.2]} 28. Rb7 {[%clk 0:01:49.2]} 28... Rc8 {[%clk 0:02:12.1]} 29. Rcc7
{[%clk 0:01:43.3]} 29... Rxc7 {[%clk 0:02:10.9]} 30. Bxc7 {[%clk 0:01:26.9]}
30... Qc6 {[%clk 0:02:10.6]} 31. Be5 {[%clk 0:01:12.6]} 31... Bb4 {[%clk
0:02:07.6]} 32. Rc7 {[%clk 0:01:01.1]} 32... Qe6 {[%clk 0:02:07.5]} 33. Qc2
{[%clk 0:00:57.8]} 33... Re8 {[%clk 0:01:39.9]} 34. Rc6 {[%clk 0:00:54]} 34...
Qf5 {[%clk 0:01:36.9]} 35. Rf6 {[%clk 0:00:49.8]} 35... Rc8 {[%clk 0:01:32.6]}
36. Qe2 {[%clk 0:00:33.3]} 36... Qd7 {[%clk 0:01:28.9]} 37. Rf4 {[%clk
0:00:24.1]} 37... Be7 {[%clk 0:01:12.5]} 38. Qa2 {[%clk 0:00:20.6]} 38... Rc4
{[%clk 0:01:11.5]} 39. Qb2 {[%clk 0:00:17.3]} 39... Rb4 {[%clk 0:01:10.6]} 40.
Qc2 {[%clk 0:00:17.2]} 40... Rxa4 {[%clk 0:01:08.5]} 41. Bf6 {[%clk 0:00:16.1]}
41... Rc4 {[%clk 0:01:06.5]} 42. Qb3 {[%clk 0:00:15.8]} 42... Bxf6 {[%clk
0:01:06.4]} 43. Rxf6 {[%clk 0:00:15.7]} 43... Rc1+ {[%clk 0:01:06.6]} 44. Kh2
{[%clk 0:00:15.7]} 44... Qc7+ {[%clk 0:01:07.5]} 45. g3 {[%clk 0:00:14.3]} 45...
hxg3+ {[%clk 0:01:08.4]} 46. fxg3 {[%clk 0:00:14.3]} 46... Rc2+ {[%clk 0:01:02]}
47. Kg1 {[%clk 0:00:13.3]} 47... Rc3 {[%clk 0:01:02.1]} 48. Qb5 {[%clk
0:00:09.5]} 48... Qxg3+ {[%clk 0:01:00.9]} 49. Kf1 {[%clk 0:00:10]} 49... Rc1+
{[%clk 0:00:59.2]} 50. Ke2 {[%clk 0:00:10.3]} 50... Re1+ {[%clk 0:00:59.5]} 51.
Kd2 {[%clk 0:00:10.3]} 51... Qxe3+ {[%clk 0:01:00.4]} 52. Kc2 {[%clk 0:00:10.5]}
52... Rc1+ {[%clk 0:01:01.3]} 53. Kb2 {[%clk 0:00:11]} 53... Qc3+ {[%clk
0:01:02.2]} 0-1

[Event "*** SCC Grand Prix: Titled Tuesday Blitz"]
[Site "Chess.com"]
[Date "2020.07.07"]
[Round "7"]
[White "tan275"]
[Black "PotapovaM"]
[Result "0-1"]
[WhiteElo "2265"]
[BlackElo "2489"]
[TimeControl "180+1"]
[EndTime "11:19:15 PDT"]
[Termination "PotapovaM won by resignation"]

1. d4 {[%clk 0:03:00.2]} 1... Nf6 {[%clk 0:02:58.7]} 2. c4 {[%clk 0:03:00.7]}
2... g6 {[%clk 0:02:53.7]} 3. g3 {[%clk 0:03:00.6]} 3... c5 {[%clk 0:02:52.6]}
4. d5 {[%clk 0:02:59.8]} 4... Bg7 {[%clk 0:02:52.2]} 5. Bg2 {[%clk 0:03:00.2]}
5... e6 {[%clk 0:02:52.8]} 6. Nc3 {[%clk 0:03:00.4]} 6... exd5 {[%clk
0:02:52.9]} 7. cxd5 {[%clk 0:03:00.3]} 7... d6 {[%clk 0:02:53.3]} 8. Nf3 {[%clk
0:03:00.5]} 8... O-O {[%clk 0:02:53.7]} 9. O-O {[%clk 0:03:01]} 9... Re8 {[%clk
0:02:38.6]} 10. Re1 {[%clk 0:03:00.1]} 10... a6 {[%clk 0:02:37.1]} 11. a4 {[%clk
0:02:59.3]} 11... Nbd7 {[%clk 0:02:36.8]} 12. h3 {[%clk 0:02:55.3]} 12... Rb8
{[%clk 0:02:35.8]} 13. Bf4 {[%clk 0:02:52]} 13... Qc7 {[%clk 0:02:20.1]} 14. e4
{[%clk 0:02:32]} 14... b5 {[%clk 0:02:00]} 15. axb5 {[%clk 0:02:29.5]} 15...
axb5 {[%clk 0:02:00.7]} 16. Nd2 {[%clk 0:02:18.1]} 16... c4 {[%clk 0:01:54.4]}
17. b4 {[%clk 0:02:11]} 17... cxb3 {[%clk 0:01:46.8]} 18. Qxb3 {[%clk
0:02:10.4]} 18... Nc5 {[%clk 0:01:47.2]} 19. Qc2 {[%clk 0:02:00.1]} 19... b4
{[%clk 0:01:46.2]} 20. Na4 {[%clk 0:01:50.7]} 20... Nfd7 {[%clk 0:01:21.6]} 21.
Rab1 {[%clk 0:01:41.7]} 21... Ba6 {[%clk 0:01:07.9]} 22. Nxc5 {[%clk 0:01:35.3]}
22... Nxc5 {[%clk 0:01:02.4]} 23. Bf1 {[%clk 0:01:00.2]} 23... Bxf1 {[%clk
0:00:57.4]} 24. Kxf1 {[%clk 0:00:52]} 24... Bc3 {[%clk 0:00:44.7]} 25. Re2
{[%clk 0:00:24.1]} 25... Qc8 {[%clk 0:00:31.5]} 26. Kg2 {[%clk 0:00:20.7]} 26...
Qa6 {[%clk 0:00:32]} 27. Nb3 {[%clk 0:00:19.4]} 27... Nd3 {[%clk 0:00:26.3]} 28.
Bh6 {[%clk 0:00:15.3]} 28... Nb2 {[%clk 0:00:20.4]} 29. Rxb2 {[%clk 0:00:14.4]}
29... Qc4 {[%clk 0:00:12.4]} 30. Rb1 {[%clk 0:00:14.2]} 30... Ra8 {[%clk
0:00:12.9]} 31. Nd2 {[%clk 0:00:13.4]} 31... Qxe2 {[%clk 0:00:12.4]} 32. Qd3
{[%clk 0:00:12.5]} 32... Qxd3 {[%clk 0:00:12.2]} 0-1